[Event "46th GRE-chT Premier 2018"]
[Site "Rio Achaia"]
[Date "2018.07.11"]
[Round "3"]
[White "Kokkota, Fotini"]
[Black "Tsouli, Rafailia"]
[Result "1-0"]
[ECO "C55"]
[WhiteElo "1615"]
[BlackElo "1327"]
[Annotator "NA"]
[PlyCount "79"]
[EventDate "2018.07.10"]
[EventType "team-tourn"]
[EventCountry "GRE"]
[SourceTitle "playchess.com"]
[Source "ChessBase"]
[SourceQuality "1"]
[TimeControl "40/5400+30:1800+30"]

1. e4 {[%emt 0:00:00]} e5 {[%emt 0:00:00]} 2. Nf3 {[%emt 0:00:00]} Nc6 {[%emt 0:00:00]} 3. Bc4 {[%emt 0:00:00]} Bc5 {[%emt 0:00:04]} 4. O-O {[%emt 0:00:02]} Nf6 {[%emt 0:00:38]} 5. d4 {[%emt 0:00:13]} exd4 {[%emt 0:02:29]} 6. e5 {[%emt 0:01:10]} d5 {[%emt 0:00:51]} 7. exf6 {[%emt 0:00:31]} dxc4 {[%emt 0:00:08]} 8. fxg7 {[%emt 0:00:05]} Rg8 {[%emt 0:00:14]} 9. Bg5 {[%emt 0:00:05]} Be7 {[%emt 0:11:02]} 10. Re1 {[%emt 0:31:33]} Be6 {[%emt 0:04:04]} 11. Bxe7 {[%emt 0:04:41]} Qxe7 {[%emt 0:01:19]} 12. Nxd4 {[%emt 0:00:56]} O-O-O {[%emt 0:21:48]} 13. Nxc6 {[%emt 0:02:50]} bxc6 {[%emt 0:00:07]} 14. Qf3 {[%emt 0:08:10]} Qb4 {[%emt 0:03:56]} 15. Qc3 {[%emt 0:11:12]} Qxc3 {[%emt 0:06:44]} 16. Nxc3 {[%emt 0:00:13]} Rd2 {[%emt 0:00:16]} 17. Re2 {[%emt 0:06:05]} Rxe2 {[%emt 0:02:17]} 18. Nxe2 {[%emt 0:00:05]} Rxg7 {[%emt 0:00:23]} 19. Re1 {[%emt 0:00:40]} Bd5 {[%emt 0:02:11]} 20. Nf4 {[%emt 0:03:50]} Kd7 {[%emt 0:04:51]} 21. Re3 {[%emt 0:01:53]} Rg4 {[%emt 0:06:54]} 22. g3 {[%emt 0:00:44]} Rg8 {[%emt 0:01:23]} 23. f3 {[%emt 0:02:28]} Rb8 {[%emt 0:03:00]} 24. b3 {[%emt 0:01:31]} cxb3 {[%emt 0:01:37]} 25. axb3 {[%emt 0:00:05]} Be6 {[%emt 0:01:55]} 26. Nxe6 {[%emt 0:01:31]} fxe6 {[%emt 0:00:06]} 27. f4 {[%emt 0:00:08]} Rb5 {[%emt 0:03:48]} 28. Kf2 {[%emt 0:00:52]} Ke7 {[%emt 0:01:19]} 29. Kf3 {[%emt 0:00:54]} Rc5 {[%emt 0:01:48]} 30. c4 {[%emt 0:01:05]} Kf6 {[%emt 0:02:00]} 31. g4 {[%emt 0:01:37]} h6 {[%emt 0:04:26]} 32. h4 {[%emt 0:01:46]} a5 {[%emt 0:05:21]} 33. Ke4 {[%emt 0:00:41]} e5 {[%emt 0:02:54]} 34. g5+ {[%emt 0:01:25]} hxg5 {[%emt 0:00:11]} 35. hxg5+ {[%emt 0:00:24]} Ke6 {[%emt 0:01:11]} 36. f5+ {[%emt 0:00:24]} Kf7 {[%emt 0:00:33]} 37. Rg3 {[%emt 0:03:41]} Kg7 {[%emt 0:01:02]} 38. g6 {[%emt 0:00:09]} a4 {[%emt 0:00:22]} 39. f6+ {[%emt 0:00:05]} Kg8 {[%emt 0:01:03]} 40. g7 {[%emt 0:00:00]} 1-0

[Event "46th GRE-chT Premier 2018"]
[Site "Rio Achaia"]
[Date "2018.07.11"]
[Round "3"]
[White "Symeonidis, Theofilos"]
[Black "Bardis, Harilaos-Panagiotis"]
[Result "0-1"]
[ECO "D21"]
[WhiteElo "1605"]
[BlackElo "1866"]
[Annotator "NA"]
[PlyCount "82"]
[EventDate "2018.07.10"]
[EventType "team-tourn"]
[EventCountry "GRE"]
[SourceTitle "playchess.com"]
[Source "ChessBase"]
[SourceQuality "1"]
[TimeControl "40/5400+30:1800+30"]

1. d4 {[%emt 0:00:00]} d5 {[%emt 0:00:00]} 2. c4 {[%emt 0:00:00]} dxc4 {[%emt 0:00:00]} 3. Nf3 {[%emt 0:00:00]} c6 {[%emt 0:00:00]} 4. e3 {[%emt 0:00:28]} b5 {[%emt 0:00:00]} 5. a4 {[%emt 0:00:31]} e6 {[%emt 0:00:40]} 6. axb5 {[%emt 0:01:43]} cxb5 {[%emt 0:00:49]} 7. b3 {[%emt 0:01:58]} Bb4+ {[%emt 0:00:33]} 8. Bd2 {[%emt 0:01:13]} Bxd2+ {[%emt 0:00:15]} 9. Qxd2 {[%emt 0:04:26]} a5 {[%emt 0:00:12]} 10. bxc4 {[%emt 0:02:01]} b4 {[%emt 0:00:07]} 11. Be2 {[%emt 0:03:07]} Nf6 {[%emt 0:03:45]} 12. O-O {[%emt 0:03:17]} O-O {[%emt 0:00:20]} 13. Ne5 {[%emt 0:03:12]} Bb7 {[%emt 0:02:41]} 14. Qc2 {[%emt 0:05:39]} Nbd7 {[%emt 0:03:32]} 15. f4 {[%emt 0:03:16]} Qc7 {[%emt 0:06:49]} 16. Nd2 {[%emt 0:01:32]} Rfb8 {[%emt 0:19:41]} 17. Ndf3 {[%emt 0:18:29]} Be4 {[%emt 0:06:24]} 18. Bd3 {[%emt 0:02:28]} b3 {[%emt 0:00:39]} 19. Qb1 {[%emt 0:06:21]} Bxd3 {[%emt 0:02:57]} 20. Qxd3 {[%emt 0:00:45]} a4 {[%emt 0:00:12]} 21. Ra3 {[%emt 0:07:02]} Nxe5 {[%emt 0:04:06]} 22. fxe5 {[%emt 0:01:11]} Qe7 {[%emt 0:07:58]} 23. Rfa1 {[%emt 0:05:46]} b2 {[%emt 0:02:01]} 24. Rb1 {[%emt 0:00:57]} Ng4 {[%emt 0:10:57]} 25. h3 {[%emt 0:08:33]} Nh6 {[%emt 0:00:31]} 26. e4 {[%emt 0:03:26]} Rb4 {[%emt 0:03:23]} 27. Qc3 {[%emt 0:04:00]} Rab8 {[%emt 0:00:42]} 28. Ra2 {[%emt 0:01:49]} Rb3 {[%emt 0:03:11]} 29. Raxb2 {[%emt 0:02:45]} Qb7 {[%emt 0:05:03]} 30. Rxb3 {[%emt 0:01:35]} axb3 {[%emt 0:00:01]} 31. Nd2 {[%emt 0:02:46]} b2 {[%emt 0:00:04]} 32. d5 {[%emt 0:01:21]} exd5 {[%emt 0:00:26]} 33. cxd5 {[%emt 0:01:18]} Qb6+ {[%emt 0:04:30]} 34. Kh2 {[%emt 0:01:02]} g5 {[%emt 0:00:13]} 35. Nc4 {[%emt 0:01:15]} Qc5 {[%emt 0:00:40]} 36. Qd3 {[%emt 0:01:22]} Qf2 {[%emt 0:00:39]} 37. Qd2 {[%emt 0:01:08]} Qh4 {[%emt 0:01:29]} 38. Rxb2 {[%emt 0:00:45]} Ra8 {[%emt 0:00:27]} 39. Ra2 {[%emt 0:00:32]} Rxa2 {[%emt 0:00:28]} 40. Qxa2 {[%emt 0:00:00]} Ng4+ {[%emt 0:00:00]} 41. Kg1 {[%emt 0:03:10]} Qe1# 0-1

[Event "46th GRE-chT Premier 2018"]
[Site "Rio Achaia"]
[Date "2018.07.11"]
[Round "3"]
[White "Blitsas, Orestis"]
[Black "Laspas, Antonios"]
[Result "1/2-1/2"]
[ECO "A22"]
[WhiteElo "1584"]
[BlackElo "1566"]
[Annotator "NA"]
[PlyCount "91"]
[EventDate "2018.07.10"]
[EventType "team-tourn"]
[EventCountry "GRE"]
[SourceTitle "playchess.com"]
[Source "ChessBase"]
[SourceQuality "1"]
[TimeControl "40/5400+30:1800+30"]

1. c4 {[%emt 0:00:00]} e5 {[%emt 0:00:54]} 2. Nc3 {[%emt 0:00:00]} Nf6 {[%emt 0:00:40]} 3. g3 {[%emt 0:00:02]} d5 {[%emt 0:00:18]} 4. cxd5 {[%emt 0:01:23]} Nxd5 {[%emt 0:00:25]} 5. Bg2 {[%emt 0:00:54]} Nb6 {[%emt 0:00:42]} 6. Nf3 {[%emt 0:00:47]} Nc6 {[%emt 0:00:11]} 7. O-O {[%emt 0:01:46]} Be6 {[%emt 0:01:10]} 8. a3 {[%emt 0:16:22]} Be7 {[%emt 0:02:14]} 9. b4 {[%emt 0:04:02]} a6 {[%emt 0:02:35]} 10. d3 {[%emt 0:00:49]} O-O {[%emt 0:00:16]} 11. Bb2 {[%emt 0:01:48]} f6 {[%emt 0:06:29]} 12. Rc1 {[%emt 0:08:10]} Rb8 {[%emt 0:02:48]} 13. Ne4 {[%emt 0:09:51]} Bd5 {[%emt 0:07:28]} 14. Qc2 {[%emt 0:03:41]} Be6 {[%emt 0:08:26]} 15. Rfd1 {[%emt 0:06:12]} Qe8 {[%emt 0:06:18]} 16. Nc5 {[%emt 0:03:41]} Bxc5 {[%emt 0:00:22]} 17. Qxc5 {[%emt 0:00:14]} Na4 {[%emt 0:00:53]} 18. Qc2 {[%emt 0:00:57]} Nxb2 {[%emt 0:00:12]} 19. Qxb2 {[%emt 0:00:07]} Bd5 {[%emt 0:01:01]} 20. b5 {[%emt 0:06:04]} axb5 {[%emt 0:09:02]} 21. Qxb5 {[%emt 0:00:44]} Be6 {[%emt 0:03:34]} 22. e3 {[%emt 0:04:22]} Bd7 {[%emt 0:01:52]} 23. Qc5 {[%emt 0:01:49]} Rc8 {[%emt 0:04:06]} 24. Nd2 {[%emt 0:01:50]} Kh8 {[%emt 0:01:31]} 25. Nb1 {[%emt 0:04:21]} Qg6 {[%emt 0:09:12]} 26. Nc3 {[%emt 0:02:21]} Rfd8 {[%emt 0:01:01]} 27. Nd5 {[%emt 0:02:28]} Qf7 {[%emt 0:05:12]} 28. Qc3 {[%emt 0:02:40]} Be6 {[%emt 0:01:10]} 29. Nb4 {[%emt 0:00:27]} Nxb4 {[%emt 0:00:44]} 30. Qxb4 {[%emt 0:01:07]} Bd5 {[%emt 0:00:25]} 31. Bxd5 {[%emt 0:06:10]} Qxd5 {[%emt 0:00:09]} 32. Rc5 {[%emt 0:03:05]} Qd6 {[%emt 0:01:38]} 33. Qc3 {[%emt 0:03:09]} h6 {[%emt 0:01:04]} 34. Kf1 {[%emt 0:02:15]} Ra8 {[%emt 0:02:10]} 35. Rxc7 {[%emt 0:02:26]} Rxa3 {[%emt 0:00:08]} 36. Qc4 {[%emt 0:00:14]} Rxd3 {[%emt 0:00:49]} 37. Rxd3 {[%emt 0:00:14]} Qxd3+ {[%emt 0:00:09]} 38. Qxd3 {[%emt 0:00:06]} Rxd3 {[%emt 0:00:03]} 39. Rxb7 {[%emt 0:00:08]} Ra3 {[%emt 0:01:22]} 40. Kg2 {[%emt 0:00:00]} h5 {[%emt 0:00:00]} 41. Rb2 {[%emt 0:04:23]} Kh7 {[%emt 0:03:49]} 42. h4 {[%emt 0:01:02]} Kg6 {[%emt 0:00:43]} 43. Rb7 {[%emt 0:00:46]} Ra2 {[%emt 0:01:32]} 44. Re7 {[%emt 0:01:13]} Rb2 {[%emt 0:00:34]} 45. Kf3 {[%emt 0:00:58]} Ra2 {[%emt 0:00:34]} 46. Kg2 {[%emt 0:01:31]} 1/2-1/2

[Event "46th GRE-chT Premier 2018"]
[Site "Rio Achaia"]
[Date "2018.07.11"]
[Round "3"]
[White "Psofimi, Milia"]
[Black "Anthopoulou, Ioanna"]
[Result "1-0"]
[ECO "C77"]
[WhiteElo "1580"]
[BlackElo "1359"]
[Annotator "NA"]
[PlyCount "89"]
[EventDate "2018.07.10"]
[EventType "team-tourn"]
[EventCountry "GRE"]
[SourceTitle "playchess.com"]
[Source "ChessBase"]
[SourceQuality "1"]
[TimeControl "40/5400+30:1800+30"]

1. e4 {[%emt 0:00:00]} e5 {[%emt 0:00:00]} 2. Nf3 {[%emt 0:00:00]} Nc6 {[%emt 0:00:43]} 3. Bb5 {[%emt 0:00:00]} a6 {[%emt 0:01:09]} 4. Ba4 {[%emt 0:00:06]} Nf6 {[%emt 0:00:35]} 5. d3 {[%emt 0:05:33]} Be7 {[%emt 0:10:04]} 6. Bxc6 {[%emt 0:00:16]} bxc6 {[%emt 0:02:04]} 7. Nxe5 {[%emt 0:02:45]} Bb7 {[%emt 0:00:53]} 8. O-O {[%emt 0:00:53]} d6 {[%emt 0:01:17]} 9. Nf3 {[%emt 0:00:51]} O-O {[%emt 0:03:25]} 10. Nc3 {[%emt 0:06:57]} d5 {[%emt 0:00:14]} 11. exd5 cxd5 12. d4 {[%emt 0:01:53]} c6 {[%emt 0:02:30]} 13. Re1 {[%emt 0:07:08]} Qc7 {[%emt 0:04:11]} 14. Bg5 {[%emt 0:09:19]} Rfe8 {[%emt 0:04:09]} 15. Ne5 {[%emt 0:13:57]} Rad8 {[%emt 0:19:17]} 16. Ne2 {[%emt 0:11:06]} h6 {[%emt 0:11:43]} 17. Bxf6 {[%emt 0:04:44]} Bxf6 {[%emt 0:00:18]} 18. Nf3 {[%emt 0:02:33]} Bc8 {[%emt 0:03:20]} 19. c3 {[%emt 0:04:18]} Qd6 {[%emt 0:03:14]} 20. Qd3 {[%emt 0:02:33]} h5 {[%emt 0:02:54]} 21. Ng3 {[%emt 0:02:23]} g6 {[%emt 0:00:36]} 22. Rxe8+ {[%emt 0:02:51]} Rxe8 {[%emt 0:00:09]} 23. Re1 {[%emt 0:01:21]} Rxe1+ {[%emt 0:04:21]} 24. Nxe1 {[%emt 0:00:04]} h4 {[%emt 0:02:07]} 25. Nf1 {[%emt 0:01:46]} c5 {[%emt 0:01:41]} 26. dxc5 {[%emt 0:04:35]} Qxc5 {[%emt 0:00:20]} 27. Nf3 {[%emt 0:01:41]} Qc4 {[%emt 0:05:27]} 28. Qxc4 {[%emt 0:00:36]} dxc4 {[%emt 0:00:06]} 29. Ne3 {[%emt 0:00:31]} Be6 {[%emt 0:01:02]} 30. Nd2 {[%emt 0:01:00]} Kf8 {[%emt 0:00:26]} 31. Ndxc4 {[%emt 0:00:59]} Bxc4 {[%emt 0:00:34]} 32. Nxc4 {[%emt 0:00:05]} Ke7 {[%emt 0:00:13]} 33. Kf1 {[%emt 0:00:15]} Ke6 {[%emt 0:03:19]} 34. Ke2 {[%emt 0:00:18]} Kd5 {[%emt 0:00:43]} 35. Kd3 {[%emt 0:00:29]} Kc5 {[%emt 0:00:19]} 36. Nd2 {[%emt 0:00:37]} Be7 {[%emt 0:00:48]} 37. Nf3 {[%emt 0:01:44]} f6 {[%emt 0:01:07]} 38. Nxh4 {[%emt 0:00:09]} g5 {[%emt 0:00:19]} 39. Nf5 {[%emt 0:00:08]} Bf8 {[%emt 0:00:09]} 40. b4+ {[%emt 0:00:00]} Kc6 {[%emt 0:00:00]} 41. a4 {[%emt 0:00:43]} Kb6 {[%emt 0:00:28]} 42. Kc4 {[%emt 0:00:30]} Kc6 {[%emt 0:00:18]} 43. Nd4+ {[%emt 0:00:13]} Kb6 {[%emt 0:00:17]} 44. Kd5 {[%emt 0:00:27]} Kb7 {[%emt 0:00:34]} 45. Ke6 {[%emt 0:00:13]} 1-0

[Event "46th GRE-chT Premier 2018"]
[Site "Rio Achaia"]
[Date "2018.07.11"]
[Round "3"]
[White "Galanakis, Nikolaos"]
[Black "Gazis, Efstathios"]
[Result "0-1"]
[ECO "C11"]
[WhiteElo "1579"]
[BlackElo "2195"]
[Annotator "NA"]
[PlyCount "118"]
[EventDate "2018.07.10"]
[EventType "team-tourn"]
[EventCountry "GRE"]
[SourceTitle "playchess.com"]
[Source "ChessBase"]
[SourceQuality "1"]
[TimeControl "40/5400+30:1800+30"]

1. e4 {[%emt 0:00:00]} e6 {[%emt 0:00:00]} 2. Nf3 {[%emt 0:00:00]} d5 {[%emt 0:00:14]} 3. Nc3 {[%emt 0:00:00]} Nf6 {[%emt 0:01:27]} 4. e5 {[%emt 0:00:00]} Nfd7 {[%emt 0:00:10]} 5. d4 {[%emt 0:00:05]} c5 {[%emt 0:00:07]} 6. Nb5 {[%emt 0:01:14]} Nc6 {[%emt 0:09:32]} 7. c3 {[%emt 0:02:49]} a6 {[%emt 0:00:23]} 8. Nd6+ {[%emt 0:02:17]} Bxd6 {[%emt 0:00:08]} 9. exd6 {[%emt 0:00:05]} cxd4 {[%emt 0:01:09]} 10. cxd4 {[%emt 0:00:55]} Nf6 {[%emt 0:02:04]} 11. Bf4 {[%emt 0:06:28]} Ne4 {[%emt 0:03:51]} 12. Bd3 {[%emt 0:00:50]} Nxd6 {[%emt 0:03:39]} 13. O-O {[%emt 0:00:26]} Ne4 {[%emt 0:02:04]} 14. Re1 {[%emt 0:02:34]} f5 {[%emt 0:02:29]} 15. Ne5 {[%emt 0:10:10]} O-O {[%emt 0:07:56]} 16. Nxc6 {[%emt 0:03:20]} bxc6 {[%emt 0:00:04]} 17. f3 {[%emt 0:01:09]} Nf6 {[%emt 0:04:49]} 18. Qd2 {[%emt 0:04:24]} Qb6 {[%emt 0:02:13]} 19. Qc3 {[%emt 0:05:41]} Bd7 {[%emt 0:06:16]} 20. Rac1 {[%emt 0:04:15]} h6 {[%emt 0:11:34]} 21. Bd6 {[%emt 0:04:42]} Rfe8 {[%emt 0:00:33]} 22. Be5 {[%emt 0:00:11]} Nh7 {[%emt 0:00:24]} 23. f4 {[%emt 0:07:41]} Qd8 {[%emt 0:01:55]} 24. Re3 {[%emt 0:03:06]} Nf6 {[%emt 0:03:17]} 25. h3 {[%emt 0:00:42]} Rf8 {[%emt 0:00:53]} 26. Qd2 {[%emt 0:06:23]} Rf7 {[%emt 0:01:20]} 27. Qe2 {[%emt 0:00:55]} Ne4 {[%emt 0:02:29]} 28. Bxe4 {[%emt 0:04:48]} dxe4 {[%emt 0:00:17]} 29. Rg3 {[%emt 0:00:11]} Qh4 {[%emt 0:02:28]} 30. Qf2 {[%emt 0:01:07]} Qh5 {[%emt 0:02:06]} 31. Qe3 {[%emt 0:00:56]} Kh7 {[%emt 0:00:34]} 32. Rc3 {[%emt 0:06:43]} Rg8 {[%emt 0:04:44]} 33. Rb3 {[%emt 0:07:12]} a5 {[%emt 0:02:40]} 34. Rb6 {[%emt 0:05:08]} a4 {[%emt 0:02:44]} 35. Ra6 {[%emt 0:00:47]} Bc8 {[%emt 0:01:27]} 36. Rxc6 {[%emt 0:02:34]} Re8 {[%emt 0:03:39]} 37. Kh2 {[%emt 0:05:47]} Bb7 {[%emt 0:00:16]} 38. Rb6 {[%emt 0:00:34]} Bd5 {[%emt 0:00:14]} 39. a3 {[%emt 0:00:26]} Qd1 {[%emt 0:02:08]} 40. Qf2 {[%emt 0:00:00]} Rc8 {[%emt 0:00:00]} 41. Qg1 {[%emt 0:11:38]} Qe2 {[%emt 0:06:13]} 42. Re3 {[%emt 0:03:38]} Qd2 {[%emt 0:06:18]} 43. Qe1 {[%emt 0:01:39]} Qxe1 {[%emt 0:00:24]} 44. Rxe1 {[%emt 0:00:04]} Rc2 {[%emt 0:00:18]} 45. Re3 {[%emt 0:00:06]} Bc4 {[%emt 0:09:45]} 46. Rc3 {[%emt 0:02:12]} Rxc3 {[%emt 0:05:43]} 47. bxc3 {[%emt 0:00:01]} e3 {[%emt 0:01:14]} 48. Kg3 {[%emt 0:00:07]} Bd5 {[%emt 0:00:52]} 49. Rb4 {[%emt 0:00:32]} g5 {[%emt 0:00:19]} 50. Rb8 {[%emt 0:05:35]} gxf4+ {[%emt 0:01:32]} 51. Kxf4 {[%emt 0:00:03]} e2 {[%emt 0:00:58]} 52. Rb1 {[%emt 0:00:19]} Rb7 {[%emt 0:00:44]} 53. Re1 {[%emt 0:00:12]} Bc4 {[%emt 0:01:54]} 54. Ke3 {[%emt 0:01:00]} Rb3 {[%emt 0:00:25]} 55. Bd6 {[%emt 0:00:06]} Rxc3+ {[%emt 0:00:45]} 56. Kd2 {[%emt 0:00:05]} Rd3+ {[%emt 0:00:27]} 57. Kc2 {[%emt 0:00:02]} Rxd4 {[%emt 0:00:34]} 58. Kc3 {[%emt 0:00:23]} Rxd6 {[%emt 0:02:29]} 59. Kxc4 {[%emt 0:00:08]} Rd2 {[%emt 0:00:14] Kd4} 0-1

[Event "46th GRE-chT Premier 2018"]
[Site "Rio Achaia"]
[Date "2018.07.11"]
[Round "3"]
[White "Makridis, Dimitrios"]
[Black "Ximinis, Ioannis"]
[Result "1-0"]
[ECO "C18"]
[WhiteElo "1565"]
[BlackElo "1272"]
[Annotator "NA"]
[PlyCount "69"]
[EventDate "2018.07.10"]
[EventType "team-tourn"]
[EventCountry "GRE"]
[SourceTitle "playchess.com"]
[Source "ChessBase"]
[SourceQuality "1"]
[TimeControl "40/5400+30:1800+30"]

1. e4 {[%emt 0:00:00]} e6 {[%emt 0:00:00]} 2. d4 {[%emt 0:00:00]} d5 {[%emt 0:00:00]} 3. Nc3 Bb4 {[%emt 0:00:01]} 4. e5 {[%emt 0:00:00]} c5 {[%emt 0:07:15]} 5. a3 {[%emt 0:00:01]} Bxc3+ {[%emt 0:00:25]} 6. bxc3 {[%emt 0:00:43]} Nc6 {[%emt 0:01:09]} 7. f4 {[%emt 0:01:37]} Nge7 {[%emt 0:06:41]} 8. Nf3 {[%emt 0:00:50]} Qa5 {[%emt 0:04:35]} 9. Bd2 {[%emt 0:01:05]} c4 {[%emt 0:01:39]} 10. g4 {[%emt 0:03:30]} Bd7 {[%emt 0:09:09]} 11. h4 {[%emt 0:04:46]} O-O-O {[%emt 0:02:16]} 12. Bh3 {[%emt 0:00:48]} Rdf8 {[%emt 0:06:39]} 13. O-O {[%emt 0:02:08]} f5 {[%emt 0:04:35]} 14. exf6 {[%emt 0:01:22]} gxf6 {[%emt 0:00:11]} 15. g5 {[%emt 0:01:51]} Rhg8 {[%emt 0:02:33]} 16. Kh2 {[%emt 0:05:21]} Qc7 {[%emt 0:08:39]} 17. gxf6 {[%emt 0:01:53]} Rxf6 {[%emt 0:00:16]} 18. Ne5 {[%emt 0:01:29]} Rgf8 {[%emt 0:07:58]} 19. Qe2 {[%emt 0:23:20]} Nf5 {[%emt 0:05:56]} 20. Rg1 {[%emt 0:08:43]} Nxe5 {[%emt 0:05:15]} 21. dxe5 {[%emt 0:01:29]} Nxh4 {[%emt 0:02:10]} 22. exf6 {[%emt 0:01:07]} Ng6 {[%emt 0:01:41]} 23. Bxe6 {[%emt 0:00:48]} Nxf4 {[%emt 0:00:19]} 24. Bxd7+ {[%emt 0:00:05]} Kxd7 {[%emt 0:00:20]} 25. Qe7+ {[%emt 0:00:24]} Kc6 {[%emt 0:00:24]} 26. Qxc7+ {[%emt 0:00:04]} Kxc7 {[%emt 0:00:11]} 27. Bxf4+ {[%emt 0:00:04]} Kc6 {[%emt 0:00:12]} 28. Be5 {[%emt 0:00:07]} a6 {[%emt 0:00:31]} 29. Rg7 {[%emt 0:00:09]} h5 {[%emt 0:00:11]} 30. Rc7+ {[%emt 0:00:10]} Kb6 {[%emt 0:00:16]} 31. Rb1+ {[%emt 0:00:04]} Ka7 {[%emt 0:00:17]} 32. Rbxb7+ {[%emt 0:00:12]} Ka8 {[%emt 0:00:07]} 33. Ra7+ {[%emt 0:00:05]} Kb8 {[%emt 0:00:05]} 34. Rcb7+ {[%emt 0:00:03]} Kc8 {[%emt 0:00:15]} 35. Rb8# {[%emt 0:00:17]} 1-0

[Event "46th GRE-chT Premier 2018"]
[Site "Rio Achaia"]
[Date "2018.07.11"]
[Round "3"]
[White "Gkikas, Ioannis"]
[Black "Tzagarakis, Panagiotis"]
[Result "1/2-1/2"]
[ECO "B42"]
[WhiteElo "1553"]
[BlackElo "1573"]
[Annotator "NA"]
[PlyCount "83"]
[EventDate "2018.07.10"]
[EventType "team-tourn"]
[EventCountry "GRE"]
[SourceTitle "playchess.com"]
[Source "ChessBase"]
[SourceQuality "1"]
[TimeControl "40/5400+30:1800+30"]

1. e4 {[%emt 0:00:03]} c5 {[%emt 0:00:00]} 2. Nf3 {[%emt 0:00:33]} e6 {[%emt 0:00:00]} 3. d4 {[%emt 0:00:05]} cxd4 {[%emt 0:00:00]} 4. Nxd4 {[%emt 0:00:09]} a6 {[%emt 0:00:25]} 5. Bd3 {[%emt 0:00:50]} Qc7 {[%emt 0:00:47]} 6. O-O {[%emt 0:00:58]} Nf6 {[%emt 0:00:29]} 7. Nc3 {[%emt 0:02:34]} d6 {[%emt 0:10:40]} 8. Be3 {[%emt 0:06:35]} b5 {[%emt 0:01:11]} 9. a3 {[%emt 0:03:39]} Bb7 {[%emt 0:00:57]} 10. Kh1 {[%emt 0:00:27]} Nbd7 {[%emt 0:02:33]} 11. Qe2 {[%emt 0:08:33]} Be7 {[%emt 0:07:50]} 12. f4 {[%emt 0:00:37]} Nc5 {[%emt 0:02:21]} 13. Bg1 {[%emt 0:02:07]} O-O {[%emt 0:01:10]} 14. Nb3 {[%emt 0:09:23]} Nfd7 {[%emt 0:13:49]} 15. f5 {[%emt 0:06:16]} e5 {[%emt 0:07:04]} 16. Rf3 {[%emt 0:03:06]} Nf6 {[%emt 0:08:29]} 17. Rd1 {[%emt 0:09:40]} Nxd3 {[%emt 0:03:14]} 18. Rfxd3 {[%emt 0:05:23]} Rfd8 {[%emt 0:06:59]} 19. Nd2 {[%emt 0:05:36]} Qc6 {[%emt 0:11:05]} 20. Re1 {[%emt 0:04:16]} d5 {[%emt 0:01:12]} 21. exd5 {[%emt 0:01:47]} Nxd5 {[%emt 0:00:11]} 22. Nxd5 {[%emt 0:00:22]} Rxd5 {[%emt 0:00:06]} 23. Rc3 {[%emt 0:01:36]} Qd7 {[%emt 0:02:06]} 24. Nf3 {[%emt 0:01:35]} f6 {[%emt 0:00:34]} 25. Qe3 {[%emt 0:07:17]} Rd6 {[%emt 0:04:24]} 26. Re2 {[%emt 0:03:13]} Rd8 {[%emt 0:00:39]} 27. Nh4 {[%emt 0:05:43]} Rc8 {[%emt 0:08:44]} 28. Rxc8+ {[%emt 0:02:22]} Qxc8 {[%emt 0:00:27]} 29. Bf2 {[%emt 0:07:19]} Rd1+ {[%emt 0:01:24]} 30. Be1 {[%emt 0:01:46]} Bc5 {[%emt 0:01:24]} 31. Qb3+ {[%emt 0:00:44]} Bd5 {[%emt 0:00:37]} 32. c4 {[%emt 0:00:16]} Rxe1+ {[%emt 0:02:11]} 33. Rxe1 {[%emt 0:00:07]} Bf2 {[%emt 0:00:48]} 34. cxd5 {[%emt 0:01:27]} Bxe1 {[%emt 0:00:21]} 35. d6+ {[%emt 0:00:14]} Kf8 {[%emt 0:00:38]} 36. Qd1 {[%emt 0:00:43]} Bxh4 {[%emt 0:00:56]} 37. d7 {[%emt 0:00:07]} Qd8 {[%emt 0:00:07]} 38. Qd6+ {[%emt 0:00:07]} Kf7 {[%emt 0:00:13]} 39. Qe6+ {[%emt 0:00:37]} Kf8 {[%emt 0:00:05]} 40. Qd6+ {[%emt 0:00:00]} Kf7 {[%emt 0:00:00]} 41. Qe6+ {[%emt 0:00:58]} Kf8 {[%emt 0:00:14]} 42. Qd6+ {[%emt 0:00:12]} 1/2-1/2